[Event "CCT Chessable Masters Playoffs 2025"]
[Site "Online"]
[Date "2025.02.20"]
[Round "54"]
[White "Duda, Jan-Krzysztof"]
[Black "Firouzja, Alireza"]
[Result "1-0"]
[Annotator "TA"]
[ECO "A80"]
[WhiteElo "2739"]
[BlackElo "2760"]
[PlyCount "145"]
[EventDate "2025.02.13"]
[EventType "k.o."]
[EventCountry "NET"]
[SourceTitle "playchess.com"]
[Source "ChessBase"]
[SourceQuality "1"]
[TimeControl "600"]

{[%evp 9,145,17,18,1,18,7,7,0,25,27,46,20,45,43,48,43,96,61,76,68,60,41,95,93,140,140,140,145,142,147,158,121,130,112,206,174,220,214,199,78,84,77,76,77,78,66,70,68,87,87,80,90,72,85,67,37,52,34,83,31,33,49,41,31,42,27,37,8,8,8,55,39,96,39,103,8,188,180,168,203,214,99,106,104,98,98,98,98,98,97,97,97,122,98,98,0,98,0,286,98,291,280,285,290,283,0,335,277,348,296,306,304,294,290,273,239,248,246,250,268,245,0,256,0,250,0,237,241,248,211,221,177,283,190,368,342,320,294]} 1. d4 {[%emt 0:00:00] ChessBase II} f5 {[%emt 0:00:08]} 2. Nf3 {[%emt 0:00:03]} Nf6 {[%emt 0:00:02]} 3. Bf4 {[%emt 0:00:00]} g6 {[%emt 0:00:08]} 4. e3 {[%emt 0:00:02]} Bg7 {[%emt 0:00:02]} 5. h3 {[%emt 0:00:01]} O-O {[%emt 0:00:05]} 6. Be2 {[%emt 0:00:01] A80: Dutch Defence: Unusual White second moves.} e6 {[%emt 0:00:07]} 7. c4 {[%emt 0:00:08]} d6 {[%emt 0:00:01]} 8. Nc3 {[%emt 0:00:01] The position is equal.} Qe7 {[%emt 0:00:04]} 9. O-O {[%emt 0:00:05]} Nc6 {[%emt 0:00:04]} 10. Bh2 {[%emt 0:00:06]} h6 {[%emt 0:00:18]} 11. Rc1 {[%emt 0:00:09][%cal Oc4c5]} Kh7 {[%emt 0:00:10]} 12. a3 $146 {[%emt 0:00:09]} ({Predecessor:} 12. c5 d5 13. a3 a6 14. b4 Ne4 15. Qb3 g5 16. Nxe4 dxe4 17. Nd2 e5 18. d5 {1-0 Matlakov,M (2694)-Picard,R (2368) FRA-chT Top 12 2015 (8.4)}) 12... a5 {[%emt 0:00:03]} (12... e5 $14) 13. Nb5 {[%emt 0:00:04]} e5 {[%emt 0:00:15]} 14. c5 {[%emt 0:00:05]} Rd8 {[%emt 0:00:12]} 15. Qc2 {[%emt 0:00:14]} a4 {[%emt 0:00:56]} (15... Ne4 $14) 16. Rfd1 $16 {[%emt 0:00:30]} e4 {[%emt 0:01:06]} (16... Be6 $142) 17. Nd2 {[%emt 0:00:10]} Be6 {[%emt 0:00:03]} 18. cxd6 {[%emt 0:00:23]} cxd6 {[%emt 0:00:01]} 19. Nc4 $1 {[%emt 0:00:00] Repels Ra5} Bxc4 {[%emt 0:00:20]} 20. Qxc4 {[%emt 0:00:00]} d5 {[%emt 0:00:39]} 21. Qc5 {[%emt 0:00:27]} Qd7 {[%emt 0:00:00]} (21... Qxc5 $16 22. Rxc5 (22. dxc5 Ne8 $14) 22... Bf8) 22. Qb6 {[%emt 0:00:13]} Ne8 {[%emt 0:00:39]} (22... Ra6 23. Qc7 g5) 23. Nc7 $1 $18 {[%emt 0:00:26]} Nxc7 {[%emt 0:00:01]} 24. Qxc7 {[%emt 0:00:00]} (24. Bxc7 Rdc8 25. Bf4 (25. Qxb7 Qxc7 26. Qxc7 Rxc7 $19) 25... g5 $17) (24. Qxb7 $1 $18 Na5 (24... Nxd4 $2 25. Rxc7 Nxe2+ 26. Kf1 $18) 25. Qxc7) 24... Qxc7 $16 {[%emt 0:00:36]} 25. Bxc7 {[%emt 0:00:00]} Rd7 {[%emt 0:00:00]} 26. Bh2 {[%emt 0:00:09]} Ra5 {[%emt 0:00:08] Prevents Bb5.} 27. g4 {[%emt 0:00:40]} Bf8 {[%emt 0:00:03]} 28. Rc3 {[%emt 0:00:04]} Kg7 {[%emt 0:00:05]} 29. Rb1 {[%emt 0:00:06]} Bd6 {[%emt 0:00:16]} 30. Bxd6 {[%emt 0:00:13]} Rxd6 {[%emt 0:00:00]} 31. b4 {[%emt 0:00:01]} axb3 {[%emt 0:00:02]} 32. Rbxb3 {[%emt 0:00:01]} Ra7 {[%emt 0:00:17][%cal Of5f4]} 33. Rb6 {[%emt 0:00:14]} Rf6 {[%emt 0:00:17]} (33... f4 $14) 34. Bb5 {[%emt 0:00:30]} (34. Rb5 $16) 34... Ne7 {[%emt 0:00:04]} 35. Rxf6 {[%emt 0:00:02]} Kxf6 $14 {[%emt 0:00:00][%mdl 4096] Endgame KRB-KRN} 36. a4 {[%emt 0:00:04]} h5 {[%emt 0:00:05]} 37. gxh5 {[%emt 0:00:44]} gxh5 {[%emt 0:00:00][%cal Of5f4]} 38. f4 {[%emt 0:00:09]} exf3 {[%emt 0:00:25]} 39. Kf2 {[%emt 0:00:03]} b6 {[%emt 0:00:02]} (39... f4 $1 $11) 40. Kxf3 {[%emt 0:00:01]} Kg5 {[%emt 0:00:01] [#]} (40... h4 $1 $14) 41. Rc1 {[%emt 0:00:05]} (41. h4+ $1 $16 Kf6 (41... Kxh4 42. Kf4 $16) 42. Rc1) 41... Ng6 {[%emt 0:00:07]} ({Better is} 41... h4 $1 $14) 42. Rc6 {[%emt 0:00:14]} (42. Rc8 $16) 42... Rb7 $2 {[%emt 0:00:01]} (42... Nh4+ $1 $11 43. Kf2 f4) 43. Rd6 $18 {[%emt 0:00:07]} Rc7 {[%emt 0:00:03]} 44. Rxd5 {[%emt 0:00:20]} (44. Rxb6 Rc2 45. Be2 Nh4+ 46. Kf2 f4 47. exf4+ Kxf4 $11) 44... Nh4+ {[%emt 0:00:12]} 45. Kf2 {[%emt 0:00:12]} (45. Ke2 $18) 45... Rc2+ $16 {[%emt 0:00:05]} 46. Be2 {[%emt 0:00:01]} Ra2 {[%emt 0:00:03]} 47. Rb5 {[%emt 0:00:01]} Ng6 {[%emt 0:00:07]} 48. Rxb6 {[%emt 0:00:19]} Rxa4 {[%emt 0:00:01]} 49. Rb2 {[%emt 0:00:06] White is more active.} Ra3 {[%emt 0:00:03]} 50. Rb5 {[%emt 0:00:20]} Ne7 {[%emt 0:00:07]} 51. Re5 {[%emt 0:00:07]} Ng6 {[%emt 0:00:05]} 52. Rb5 {[%emt 0:00:01]} Ne7 $1 {[%emt 0:00:05]} 53. Re5 {[%emt 0:00:01]} (53. Bc4 $16) 53... Nc8 $2 {[%emt 0:00:00][%mdl 8192] [#]} (53... Ng6 $11) 54. Rd5 $2 {[%emt 0:00:02]} (54. h4+ $1 $18 {is the precise move to win.} Kf6 55. Bxh5) 54... Kf6 $2 {[%emt 0:00:07]} (54... Ne7 $16 55. Re5) 55. Bxh5 $18 {[%emt 0:00:02]} Ke6 {[%emt 0:00:02]} 56. Re5+ {[%emt 0:00:02]} Kf6 {[%emt 0:00:01]} 57. Rd5 $2 {[%emt 0:00:01]} ({White should try} 57. h4 $18) 57... Ra6 $2 {[%emt 0:00:03][%mdl 8192]} (57... Ke6 $1 $11 58. Bf3 Nd6 59. Re5+ Kf6) 58. Be2 {[%emt 0:00:02]} Rb6 {[%emt 0:00:01]} 59. Bd3 {[%emt 0:00:01]} Ne7 {[%emt 0:00:02]} 60. Rb5 {[%emt 0:00:02]} Rc6 {[%emt 0:00:02]} 61. Rc5 {[%emt 0:00:01]} Rd6 {[%emt 0:00:01]} 62. Kf3 {[%emt 0:00:02]} Rd8 {[%emt 0:00:00]} 63. Ra5 {[%emt 0:00:07]} Rh8 {[%emt 0:00:02]} 64. Kg3 {[%emt 0:00:02]} Rg8+ {[%emt 0:00:01]} 65. Kf3 {[%emt 0:00:03]} Rh8 $1 {[%emt 0:00:01]} 66. Kg3 $2 {[%emt 0:00:01]} (66. Kf4 $18 {[%cal Rd3f5]} Rh5 67. Ra6+ Kg7 68. Re6 Nd5+ 69. Kg3) 66... Rc8 $2 {[%emt 0:00:01]} (66... Rg8+ $1 $11 67. Kf3 Rh8) 67. Kf3 $2 {[%emt 0:00:01]} (67. Ra6+ $18 Kg7 68. Ra3) 67... Rc3 $2 {[%emt 0:00:00]} (67... Rh8 $11 {and Black has nothing to worry.}) 68. Ke2 {[%emt 0:00:02]} Rc1 {[%emt 0:00:01]} 69. h4 {[%emt 0:00:02]} Rh1 {[%emt 0:00:01]} 70. Ra6+ {[%emt 0:00:01]} Kf7 {[%emt 0:00:01]} (70... Kg7 {might work better.} 71. Re6 Kf7) 71. Bc4+ {[%emt 0:00:01]} Ke8 $2 {[%emt 0:00:00]} (71... Kg7 72. d5 Rxh4) 72. Ra8+ {[%emt 0:00:03]} Kd7 {[%emt 0:00:07]} 73. Ra7+ {[%emt 0:00:00] Weighted Error Value: White=0.29 (precise) /Black=0.39  Loses game:     	---       	Black=6      Missed win:     	White=4     	---        Mistake:       	White=6     	Black=11     Inaccurate:     	White=5     	---        OK:         	White=27    	Black=20     Best:        	White=2     	Black=6      Strong:       	White=1     	Black=2} 1-0

[Event "CCT Chessable Masters Playoffs 2025"]
[Site "Online"]
[Date "2025.02.20"]
[Round "55"]
[White "Nepomniachtchi, Ian"]
[Black "Duda, Jan-Krzysztof"]
[Result "1/2-1/2"]
[Annotator "TA"]
[ECO "C50"]
[WhiteElo "2754"]
[BlackElo "2739"]
[PlyCount "163"]
[EventDate "2025.02.13"]
[EventType "k.o."]
[EventCountry "NET"]
[SourceTitle "playchess.com"]
[Source "ChessBase"]
[SourceQuality "1"]
[TimeControl "600"]

{[%evp 10,163,20,27,22,13,8,15,15,1,14,4,0,0,3,0,0,0,2,0,0,0,62,-31,0,0,-6,-35,-27,-79,-83,-110,-74,-155,-162,-227,-214,-250,-84,-197,-79,-79,-77,-171,-40,-36,-47,-39,-53,-43,-15,-16,-16,-16,-18,-46,0,0,0,0,0,0,0,0,0,-10,0,0,0,0,0,-59,-59,-59,-59,-59,-59,-59,-59,-59,-59,-59,-59,-66,-66,-91,-66,-98,-66,-112,-10,-93,-32,-32,-32,-32,-32,-32,-32,-32,-32,-32,-32,-32,-32,-32,-32,-32,-32,-32,-32,-32,-32,-32,-32,-32,-32,-32,-32,-32,-32,-32,-32,-32,-32,-32,0,0,0,0,0,0,0,0,0,0,0,0,0,0,0,0,0,0,0,0,0,0,0,0,0,0,0,0,0,0]} 1. e4 {[%emt 0:00:00]} e5 {[%emt 0:00:00]} 2. Nf3 {[%emt 0:00:02]} Nc6 {[%emt 0:00:01]} 3. Bc4 {[%emt 0:00:01]} Bc5 {[%emt 0:00:01]} 4. d3 {[%emt 0:00:03]} Nf6 {[%emt 0:00:02]} 5. Nc3 {[%emt 0:00:02]} d6 {[%emt 0:00:03]} 6. Na4 {[%emt 0:00:01]} Bb6 {[%emt 0:00:01] C50: Hungarian Defence and Giuoco Pianissimo.} 7. a3 {[%emt 0:00:03]} h6 {[%emt 0:00:03]} 8. O-O {[%emt 0:00:02]} O-O {[%emt 0:00:02]} 9. h3 {[%emt 0:00:01]} Ne7 {[%emt 0:00:09]} 10. b4 {[%emt 0:00:03]} Ng6 {[%emt 0:00:02]} 11. Re1 {[%emt 0:00:13]} Re8 {[%emt 0:00:04]} 12. Bb3 {[%emt 0:00:05]} Be6 {[%emt 0:00:06]} 13. c4 $146 {[%emt 0:00:10]} (13. Bxe6 Rxe6 14. c4 c6 15. Nxb6 axb6 16. a4 d5 17. Qb3 d4 18. c5 b5 19. Bd2 bxa4 20. Rxa4 {0-1 Nepomniachtchi,I (2755)-So,W (2747) Wch Blitz Final 2024 (2.1)}) 13... c6 {[%emt 0:00:05]} 14. Nxb6 {[%emt 0:00:17]} axb6 {[%emt 0:00:00]} 15. d4 {[%emt 0:00:02]} c5 {[%emt 0:00:16]} (15... exd4 $11 16. Nxd4 Bd7) 16. dxe5 {[%emt 0:00:57]} (16. d5 $14 Bd7 17. bxc5) 16... Nxe5 {[%emt 0:00:15]} 17. Nxe5 {[%emt 0:00:15]} dxe5 {[%emt 0:00:00]} 18. Qc2 {[%emt 0:00:12]} cxb4 {[%emt 0:00:27]} 19. Bb2 {[%emt 0:00:04]} (19. Ba4 $11) 19... bxa3 $17 {[%emt 0:00:05]} 20. Bxe5 {[%emt 0:00:04]} Nd7 {[%emt 0:00:03]} 21. Bc3 {[%emt 0:00:08]} ({White should try} 21. Bd6) 21... Nc5 {[%emt 0:00:07][%cal Ob6b5]} 22. Re3 {[%emt 0:00:06]} (22. Ba2 $142) 22... b5 $1 $19 {[%emt 0:01:20]} 23. Rg3 {[%emt 0:00:08] [#]} f6 $2 {[%emt 0:00:01]} (23... Bxc4 $2 24. Rxg7+ (24. Bxg7 Nxe4 25. Bf6+ Nxg3 $16) 24... Kf8 25. Bxc4 bxc4 26. Qe2 $16) (23... g6 $1 $19 24. Ba2 Bxc4 (24... bxc4 $2 25. Qe2 $19) 25. Bxc4 bxc4) 24. Bb4 {[%emt 0:00:41]} (24. Rd1 $17 Qe7 25. Bb4) 24... bxc4 {[%emt 0:01:04]} (24... Nxb3 $19 25. Rxb3 a2 (25... Bxc4 26. Rbxa3 Rxa3 27. Rxa3 $17) (25... bxc4 26. Rbxa3 Rxa3 27. Rxa3 $17)) 25. Bxc4 $17 {[%emt 0:00:05]} Qd4 {[%emt 0:00:05][%csl LRa1,LRc4,LRe4]} 26. Bxe6+ {[%emt 0:00:29]} (26. Qc3 $17 Qxc3 (26... Qxc4 27. Qxf6 $11) 27. Rxc3) 26... Rxe6 {[%emt 0:00:00]} ({Better is} 26... Nxe6 $19 27. Bc3 Qc4) 27. Raxa3 $15 {[%emt 0:00:20]} Rxa3 {[%emt 0:00:05]} (27... Qxb4 $2 {is the wrong capture.} 28. Rxa8+ Kf7 29. Qd1 Rxe4 30. Qh5+ g6 31. Qxg6+ (31. Rxg6 Ke7 $18) 31... Ke7 32. Qxh6 $18) 28. Bxa3 {[%emt 0:00:01]} Nxe4 {[%emt 0:00:46]} 29. Re3 {[%emt 0:00:30]} Qd5 {[%emt 0:00:49]} 30. Rd3 {[%emt 0:00:20]} Qc6 {[%emt 0:00:31]} 31. Rd8+ {[%emt 0:00:01]} (31. Qxc6 bxc6 32. Rd8+ Kh7 33. Bf8) 31... Kh7 {[%emt 0:00:01]} 32. Qd3 {[%emt 0:00:00]} (32. Qxc6 {simplifies} bxc6 33. Bf8 Nc3 34. Rd7) 32... Qc3 {[%emt 0:00:07]} (32... Qb6 $15 33. Qd4 Qxd4 34. Rxd4 Re8) 33. Qxc3 $11 {[%emt 0:00:19]} Nxc3 {[%emt 0:00:00][%mdl 4096] Endgame KRB-KRN. Black is a pawn up.} 34. Rd7 {[%emt 0:00:00]} b5 {[%emt 0:00:25]} 35. Rb7 {[%emt 0:00:07]} Kg8 {[%emt 0:00:23]} 36. Bb4 {[%emt 0:00:01]} Ne2+ {[%emt 0:00:07]} 37. Kh2 {[%emt 0:00:02]} Nd4 {[%emt 0:00:00]} 38. Bc5 {[%emt 0:00:03]} Nc6 {[%emt 0:00:01]} 39. f4 {[%emt 0:00:08]} Re4 {[%emt 0:00:04]} 40. Rb6 {[%emt 0:00:03] [#]} (40. Kg3 $11) 40... Rxf4 $1 $15 {[%emt 0:00:19]} 41. Rxc6 {[%emt 0:00:03] Hoping for Rb6. KRB-KR} (41. Kg3 Rc4) 41... Rc4 {[%emt 0:00:01]} 42. Rc7 {[%emt 0:00:15]} b4 {[%emt 0:00:01]} 43. Rb7 {[%emt 0:00:02]} Rxc5 {[%emt 0:00:00]} 44. Rxb4 {[%emt 0:00:01] KR-KR. Black is a pawn up.} Kh7 {[%emt 0:00:01]} 45. Ra4 {[%emt 0:00:01]} h5 {[%emt 0:00:00]} 46. Rb4 {[%emt 0:00:00]} g5 {[%emt 0:00:00]} 47. Ra4 {[%emt 0:00:01]} Kg6 {[%emt 0:00:01]} 48. Rb4 {[%emt 0:00:00]} Rc6 {[%emt 0:00:01]} 49. Ra4 {[%emt 0:00:01] [#]} (49. h4 $15) 49... f5 {[%emt 0:00:01]} (49... h4 $1 $17) 50. Ra5 {[%emt 0:00:01]} (50. h4 $11 {keeps the balance.}) 50... g4 {[%emt 0:00:01]} (50... h4 $17) 51. hxg4 {[%emt 0:00:01]} hxg4 {[%emt 0:00:01]} 52. g3 {[%emt 0:00:01]} Kg5 {[%emt 0:00:00]} 53. Kg2 {[%emt 0:00:01]} Rc2+ {[%emt 0:00:01]} 54. Kg1 {[%emt 0:00:00]} Rd2 {[%emt 0:00:00]} 55. Rb5 {[%emt 0:00:01]} Rd6 {[%emt 0:00:01]} 56. Kg2 {[%emt 0:00:01]} Kf6 {[%emt 0:00:00]} 57. Ra5 {[%emt 0:00:03]} Ke6 {[%emt 0:00:01]} 58. Rb5 {[%emt 0:00:01]} Rd2+ {[%emt 0:00:00]} 59. Kg1 {[%emt 0:00:01]} Rd5 {[%emt 0:00:00]} 60. Rb4 {[%emt 0:00:01]} Ke5 {[%emt 0:00:01]} 61. Kf2 {[%emt 0:00:02]} Rd2+ {[%emt 0:00:02]} 62. Kf1 {[%emt 0:00:01]} Rd4 {[%emt 0:00:01]} 63. Rb3 {[%emt 0:00:03]} Ke4 {[%emt 0:00:01]} 64. Ke2 {[%emt 0:00:01] Prevents Rd3} Ra4 {[%emt 0:00:02]} 65. Re3+ {[%emt 0:00:01]} Kd4 {[%emt 0:00:00] ( -> ...Ra2+)} 66. Rd3+ {[%emt 0:00:01]} Ke5 {[%emt 0:00:00]} 67. Rd2 {[%emt 0:00:10]} f4 {[%emt 0:00:09]} (67... Ra3 $5 68. Kf2 $8 Kf6 $11) 68. gxf4+ {[%emt 0:00:06] The position is equal.} Rxf4 {[%emt 0:00:00]} 69. Rd3 {[%emt 0:00:01] Dodges Rf3} Kf5 {[%emt 0:00:04]} 70. Rd5+ {[%emt 0:00:05]} Kf6 {[%emt 0:00:07]} 71. Ke3 {[%emt 0:00:03]} Rf1 {[%emt 0:00:02] ...g3 is the strong threat.} 72. Ke2 $1 {[%emt 0:00:01]} Rf3 {[%emt 0:00:02]} 73. Ra5 {[%emt 0:00:01]} Kg6 {[%emt 0:00:04]} 74. Rb5 {[%emt 0:00:01]} Rf6 {[%emt 0:00:01]} 75. Rc5 {[%emt 0:00:02]} Kh6 {[%emt 0:00:01]} 76. Rb5 {[%emt 0:00:02]} g3 {[%emt 0:00:28]} 77. Rb3 {[%emt 0:00:01]} g2 {[%emt 0:00:01]} 78. Rh3+ {[%emt 0:00:01]} Kg7 {[%emt 0:00:01]} (78... Kg5 $5 79. Rg3+ $8 Kh4 80. Rxg2 Kh3 $11) 79. Rg3+ {[%emt 0:00:00]} Rg6 {[%emt 0:00:00]} 80. Rxg6+ {[%emt 0:00:00]} Kxg6 {[%emt 0:00:00]} 81. Kf2 {[%emt 0:00:01]} g1=Q+ {[%emt 0:00:01]} 82. Kxg1 {[%emt 0:00:00] White happily takes the draw.   Weighted Error Value: White=0.23 (precise) /Black=0.22 (precise)   Missed win:     	---       	Black=1      Mistake:       	White=9     	Black=6      Inaccurate:     	White=4     	Black=5      OK:         	White=28    	Black=18     Best:        	White=7     	Black=4      Strong:       	White=1     	Black=1} 1/2-1/2

[Event "CCT Chessable Masters Playoffs 2025"]
[Site "Online"]
[Date "2025.02.20"]
[Round "55"]
[White "Duda, Jan-Krzysztof"]
[Black "Nepomniachtchi, Ian"]
[Result "0-1"]
[Annotator "TA"]
[ECO "E11"]
[WhiteElo "2739"]
[BlackElo "2754"]
[PlyCount "102"]
[EventDate "2025.02.13"]
[EventType "k.o."]
[EventCountry "NET"]
[SourceTitle "playchess.com"]
[Source "ChessBase"]
[SourceQuality "1"]
[TimeControl "600"]

{[%evp 9,102,6,11,-1,-3,-9,20,19,7,-3,-6,-15,-7,-2,0,-20,0,0,22,8,15,14,29,-12,0,-15,-18,-27,0,0,0,0,0,-26,-27,-39,-43,-26,-18,-66,-21,-89,-90,-141,-144,-184,-186,-180,-184,-184,-181,-187,-193,-212,-224,-213,-176,-165,-156,-376,-343,-376,-376,-376,-376,-376,-375,-376,-376,-376,-376,-376,-376,-376,-376,-347,-43,-376,-376,-320,-272,-929,-890,-396,-382,-375,-264,-29972,-29969,-29984,-29985,-29983,-29984,-29988,-29989]} 1. d4 {[%emt 0:00:00]} Nf6 {[%emt 0:00:01]} 2. c4 {[%emt 0:00:01]} e6 {[%emt 0:00:01]} 3. Nf3 {[%emt 0:00:01]} d5 {[%emt 0:00:01]} 4. g3 {[%emt 0:00:00]} Bb4+ {[%emt 0:00:04]} 5. Bd2 {[%emt 0:00:02]} a5 {[%emt 0:00:01]} 6. Qc1 {[%emt 0:00:03] E11: Bogo-Indian.} O-O {[%emt 0:00:02]} 7. Bg2 {[%emt 0:00:01]} Be7 {[%emt 0:00:01]} 8. O-O {[%emt 0:00:02] The position is equal.} c6 {[%emt 0:00:01]} 9. Bg5 {[%emt 0:00:23]} Nbd7 {[%emt 0:00:03]} 10. Nbd2 {[%emt 0:00:02]} h6 $146 {[%emt 0:00:02]} ({Predecessor:} 10... b6 11. Qc2 Ba6 12. Rfe1 c5 13. dxc5 Nxc5 14. Rad1 h6 15. Bxf6 Bxf6 16. cxd5 exd5 {1-0 Muradli,M (2550)-Gharibyan,M (2495) Wch U20 Blitz 2023 (4)}) 11. Bxf6 {[%emt 0:00:01]} Nxf6 {[%emt 0:00:04]} 12. Qc2 {[%emt 0:00:01]} a4 {[%emt 0:00:03]} 13. a3 {[%emt 0:00:03]} Qa5 {[%emt 0:00:06]} 14. Rac1 {[%emt 0:00:03]} Rd8 {[%emt 0:00:06]} 15. Rfd1 {[%emt 0:00:05]} Bd7 {[%emt 0:00:17]} 16. e4 {[%emt 0:00:09]} Be8 {[%emt 0:00:13]} 17. h4 {[%emt 0:01:08]} dxe4 {[%emt 0:00:12]} 18. Nxe4 {[%emt 0:00:00]} Nxe4 {[%emt 0:00:01]} 19. Qxe4 {[%emt 0:00:00]} Bf6 {[%emt 0:00:00]} 20. c5 {[%emt 0:00:37]} b6 {[%emt 0:00:29]} 21. Qe2 {[%emt 0:00:34]} Rab8 {[%emt 0:00:19]} 22. Rd2 {[%emt 0:00:14]} bxc5 {[%emt 0:00:08]} 23. Rxc5 {[%emt 0:00:00]} Rb5 {[%emt 0:00:01]} 24. Rxb5 {[%emt 0:01:35]} (24. Rcc2 $11 {deserves consideration.}) 24... Qxb5 {[%emt 0:00:17]} (24... cxb5 $5 25. d5 exd5 26. Rxd5 Kf8 (26... Rxd5 $2 27. Qxe8+ Kh7 28. Qe4+ Kg8 29. Qxd5 $18) 27. Rxd8 Qxd8 $17) 25. Bf1 {[%emt 0:00:03]} (25. Qe3 $11 {remains equal.}) 25... Qxe2 $17 {[%emt 0:00:08] Black keeps a firm grip on the game.} 26. Bxe2 {[%emt 0:00:00] [#]} (26. Rxe2 $142 Bxd4 27. Nxd4 Rxd4 28. Rc2) 26... c5 $1 {[%emt 0:00:02][%mdl 512]} 27. dxc5 {[%emt 0:00:01]} (27. Kf1 cxd4) 27... Rxd2 {[%emt 0:00:02]} 28. Nxd2 {[%emt 0:00:00]} Bxb2 {[%emt 0:00:01][%mdl 4096] Endgame KBB-KBN} 29. Nc4 {[%emt 0:00:02]} Bd4 {[%emt 0:00:04]} 30. Nd6 {[%emt 0:00:14]} Bc6 {[%emt 0:00:04]} 31. Bb5 {[%emt 0:00:21]} Bxb5 {[%emt 0:00:02]} (31... Bxc5 32. Bxc6 Bxd6 33. Bxa4 $15) 32. Nxb5 {[%emt 0:00:00]} Bxc5 $19 {[%emt 0:00:01] KB-KN. Black is a pawn up.} 33. Kf1 {[%emt 0:00:00]} f5 {[%emt 0:00:08]} 34. f4 {[%emt 0:00:46]} (34. Nc3 $17 {was necessary.}) 34... Kf7 {[%emt 0:00:03][%cal Oe6e5]} 35. Ke2 {[%emt 0:00:32] [#]} e5 $1 {[%emt 0:00:03][%mdl 512]} 36. fxe5 {[%emt 0:00:01]} Ke6 {[%emt 0:00:00]} 37. Nc3 {[%emt 0:00:01]} Kxe5 {[%emt 0:00:06]} (37... Bxa3 38. Nxa4 Kxe5 39. Kf3 $17) 38. Nxa4 {[%emt 0:00:01]} Bd4 {[%emt 0:00:20]} (38... Bxa3 39. Kf3 $15) 39. Kd3 {[%emt 0:00:02]} Bf2 {[%emt 0:00:02]} 40. Nc3 {[%emt 0:00:02]} Bxg3 {[%emt 0:00:02]} 41. h5 {[%emt 0:00:00]} Kf6 $1 {[%emt 0:00:03]} 42. Ne2 {[%emt 0:00:14]} Bc7 {[%emt 0:00:07]} (42... Bb8 $1 $19 {Strongly threatening ...Kg5.} 43. a4 Kg5) 43. a4 $2 {[%emt 0:00:04][%mdl 8192]} (43. Nd4 $15) 43... Kg5 {[%emt 0:00:02]} 44. Nd4 {[%emt 0:00:01] [#] Ne6+ is the strong threat.} Bb6 $1 {[%emt 0:00:06][%cal Of5f4]} ({Weaker is} 44... Kxh5 45. Nxf5 g6 46. Ne3 $11) 45. Ne6+ $2 {[%emt 0:00:06]} (45. Nc6) 45... Kxh5 {[%emt 0:00:07]} 46. a5 {[%emt 0:00:07] [#]} Ba7 $1 {[%emt 0:00:04]} (46... Bxa5 47. Nxg7+ Kg4 48. Ne8 $19) 47. Nxg7+ {[%emt 0:00:55]} Kg4 {[%emt 0:00:01]} 48. Ke2 $2 {[%emt 0:00:00]} (48. Ne8 $19 f4 49. Nf6+ Kf3 50. Nh5) 48... f4 {[%emt 0:00:01] Black mates.} 49. Kf1 {[%emt 0:00:06]} h5 {[%emt 0:00:01]} 50. Ne8 {[%emt 0:00:04]} h4 {[%emt 0:00:03]} 51. Kg2 {[%emt 0:00:28]} f3+ {[%emt 0:00:02] Weighted Error Value: White=0.62/Black=0.17 (very precise)   Loses game:     	White=2     	---        Missed win:     	---       	Black=1      Mistake:       	White=5     	---        Inaccurate:     	White=2     	Black=3      OK:         	White=9     	Black=19     Best:        	White=2     	Black=7      Strong:       	---       	Black=2      Brilliant:      	---       	Black=1} 0-1